[Event "2nd China Preliminary Asian Games 2022"]
[Site "HangZhou"]
[Date "2022.04.17"]
[Round "4.1"]
[White "Zhang, Zhong"]
[Black "Xu, Xiangyu"]
[Result "0-1"]
[ECO "B22"]
[WhiteElo "2640"]
[BlackElo "2564"]
[Annotator "TA"]
[PlyCount "126"]
[EventDate "2022.04.13"]
[EventType "tourn"]
[EventCountry "CHN"]
[SourceTitle "playchess.com"]
[Source "ChessBase"]
[SourceQuality "1"]
[TimeControl "40/5400+30:1800+30"]

{[%evp 21,126,14,12,23,17,28,31,26,47,22,42,31,33,25,45,-12,0,0,-13,-10,0,0,0,-28,-8,-8,-8,-14,-6,-60,-58,-83,-87,-83,-68,-114,-89,-123,-107,-163,-149,-162,-149,-198,-200,-180,-78,-98,-114,-68,-91,-186,-162,-149,-108,-456,-502,-491,-491,-460,-466,-806,-822,-851,-847,-780,-779,-692,-576,-603,-591,-585,-590,-529,-500,-5277,-4037,-12828,-12819,-2607,-580,-603,-592,-515,-325,-327,-314,-372,-371,-506,-593,-1582,-1480,-672,-482,-1000,-1010,-1290,-1259,-12830,-12830,-12829,-12815,-12835,-12834,-5689,-2818]} 1. e4 {[%emt 0:00:25]} c5 {[%emt 0:00:06]} 2. c3 {[%emt 0:00:12]} d5 {[%emt 0:07:10]} 3. exd5 {[%emt 0:01:10]} Qxd5 {[%emt 0:00:05]} 4. d4 {[%emt 0:00:05]} Nf6 {[%emt 0:00:33]} 5. Nf3 {[%emt 0:00:11]} Nc6 {[%emt 0:02:04]} 6. Be2 {[%emt 0:05:33]} e6 {[%emt 0:04:53]} 7. O-O {[%emt 0:00:38]} Be7 {[%emt 0:00:21]} 8. c4 {[%emt 0:00:26]} Qd8 {[%emt 0:05:24]} 9. dxc5 {[%emt 0:00:13]} O-O {[%emt 0:00:40]} 10. a3 {[%emt 0:04:30]} a5 {[%emt 0:08:04]} 11. Nc3 {[%emt 0:01:19][%cal Bb1c3,Bc3a4,Ba4b6][%mdl 32]} Bxc5 {[%emt 0:01:58]} 12. Na4 {[%emt 0:05:51] [#] B22: Sicilian: 2 c3.} Bd6 $146 {[%emt 0:18:25]} ({Predecessor:} 12... b6 13. Bf4 Nd7 14. Bd6 Re8 15. Rb1 e5 16. Bxc5 bxc5 17. Qd5 Qc7 18. Ng5 Nf6 19. Qxc5 Ra7 {1-0 (30) Soors,S (2407)-Gormally,D (2489) Amsterdam 2015}) 13. Be3 {[%emt 0:03:16]} Qe7 {[%emt 0:01:05]} 14. Qc2 {[%emt 0:06:38] White is slightly better.} e5 {[%emt 0:03:42]} 15. Nb6 {[%emt 0:16:16]} Rb8 {[%emt 0:09:48]} 16. c5 {[%emt 0:17:45]} Bc7 {[%emt 0:00:32]} 17. Nxc8 {[%emt 0:01:02]} Rfxc8 {[%emt 0:01:41]} 18. Qf5 {[%emt 0:03:21]} (18. Rad1 $14) 18... e4 {[%emt 0:02:04]} 19. Nd4 {[%emt 0:01:45]} Be5 {[%emt 0:03:06]} 20. Nb5 {[%emt 0:00:43]} (20. Nxc6 bxc6 21. Rab1 g6 $15) 20... Bxb2 {[%emt 0:01:18]} 21. Rab1 {[%emt 0:00:39]} Be5 {[%emt 0:00:19]} 22. Nd6 {[%emt 0:05:49]} Bxd6 {[%emt 0:17:01]} 23. cxd6 {[%emt 0:00:05]} Qxd6 {[%emt 0:02:46]} 24. Bf4 {[%emt 0:00:15] This bishop pair is nice.} Qd8 {[%emt 0:00:05]} 25. Qh3 {[%emt 0:12:21]} (25. Bxb8 $11 Nd4 26. Rfd1 Nxf5 27. Rxd8+ Rxd8 28. Rxb7) 25... Nd4 $15 {[%emt 0:01:42][%cal Bc6d4,Bd4e6,Be6g5][%mdl 32]} 26. Bd1 {[%emt 0:00:24]} Ra8 {[%emt 0:00:25]} 27. Rxb7 {[%emt 0:00:15]} Qd5 {[%emt 0:00:33]} 28. Rb2 {[%emt 0:00:41]} (28. Ra7 $15 {should be considered.}) 28... Ne6 {[%emt 0:01:30]} 29. Be3 {[%emt 0:01:53]} Rc3 {[%emt 0:00:59] Against Bb3} 30. a4 {[%emt 0:02:20]} (30. Qg3 $17 {was worth a try.}) 30... Rd8 {[%emt 0:00:09]} 31. g3 {[%emt 0:02:05]} Ng5 {[%emt 0:03:17]} 32. Qh4 {[%emt 0:01:03] [#]} (32. Bxg5 $17 Qxg5 33. Rb5) 32... h6 $1 $19 {[%emt 0:00:52] White must now prevent ...Qxd1.} 33. Be2 {[%emt 0:01:55]} Rxe3 {[%emt 0:03:04]} 34. fxe3 $17 {[%emt 0:00:10][%cal Of1f6]} Qc5 {[%emt 0:00:02]} 35. Kh1 {[%emt 0:01:12]} Qc3 $36 {[%emt 0:00:54][%mdl 2048] White is under strong pressure.} 36. Rbb1 {[%emt 0:02:37]} (36. Rfb1 $17) 36... Qxe3 $19 {[%emt 0:01:13]} 37. Rbe1 {[%emt 0:00:30]} Qb3 {[%emt 0:00:37] 0x0.0023821a1276dp-1022s more active pieces.} 38. Rd1 $2 {[%emt 0:01:01][%mdl 8192] White does not recover from this.} (38. Qf4 $17 {was the crucial defense.}) 38... Rxd1 {[%emt 0:00:16]} 39. Rxd1 {[%emt 0:00:38]} e3 {[%emt 0:00:40]} 40. Kg1 {[%emt 0:00:00]} Qb7 {[%emt 0:00:00] ...Nfe4 is the strong threat.} 41. h3 {[%emt 0:09:38]} (41. Rd8+ Kh7 42. g4 Qb2 $19) (41. Rc1 $142 Kh7 42. Rf1) 41... Nfe4 {[%emt 0:12:56] ( -> ...Nf2)} (41... Nf3+ 42. Bxf3 Qxf3 43. Rd8+ Kh7 44. Qf4 $11) 42. Kh2 {[%emt 0:07:04]} Nd2 {[%emt 0:09:50]} 43. Rxd2 {[%emt 0:03:39]} exd2 {[%emt 0:00:07]} 44. Qd4 {[%emt 0:00:09] Inhibits Qb2.} Qb4 {[%emt 0:02:50]} 45. Qd8+ {[%emt 0:02:22]} Kh7 {[%emt 0:00:03]} 46. h4 {[%emt 0:00:35]} Ne6 {[%emt 0:03:18]} 47. Qd7 {[%emt 0:00:24]} Kg6 {[%emt 0:02:02]} ({Stronger than} 47... Nd4 48. Bd3+ f5 49. Bxf5+ Nxf5 50. Qxf5+ Kg8 51. Qd5+ Kf8 52. Kg2 $17) 48. Bd1 {[%emt 0:04:45]} (48. Qd5 $142 Kf6 49. Bd1) 48... Qd4 {[%emt 0:00:40]} 49. Qb5 {[%emt 0:00:34]} Qf2+ {[%emt 0:00:28]} 50. Kh3 {[%emt 0:00:04]} Qf5+ {[%emt 0:00:44]} (50... Nd4 $142 51. h5+ Kh7) 51. Kg2 {[%emt 0:00:02]} Qe4+ {[%emt 0:00:53]} 52. Kh2 {[%emt 0:00:26]} Qd4 {[%emt 0:01:44] And now ...Qf2+ would win.} 53. Kg2 {[%emt 0:00:57] Against Qf2+} Qc3 {[%emt 0:00:30]} 54. Qd7 {[%emt 0:01:57]} Kf6 {[%emt 0:00:16] Hoping for ...g6.} 55. Qd5 {[%emt 0:01:31]} g6 {[%emt 0:00:23][%cal Bg7g6,Bg6g5][%mdl 32] Black is clearly winning.} ({And not} 55... Qd4 56. Qxa5 g5 57. hxg5+ Nxg5 58. Qa6+ Kg7 59. Qe2 $17) 56. h5 {[%emt 0:02:39]} g5 {[%emt 0:00:08]} 57. Qe4 {[%emt 0:02:38]} Qa1 {[%emt 0:01:15]} 58. Qf3+ {[%emt 0:00:46]} (58. Qe2 $142 Qb2 59. Qf3+ Kg7 60. Qd5) 58... Kg7 {[%emt 0:00:14] Threatens to win with ...Nc5.} 59. Qe2 {[%emt 0:01:45]} Qd4 {[%emt 0:00:15]} 60. Qf3 {[%emt 0:00:51]} Nc5 {[%emt 0:00:17]} 61. Bc2 {[%emt 0:00:23] [#]} Ne4 $1 {[%emt 0:00:59][%mdl 512]} 62. Qf5 {[%emt 0:00:37]} (62. Bb3 Nd6) 62... d1=Q {[%emt 0:00:55]} 63. Bxd1 {[%emt 0:00:08]} Qd2+ {[%emt 0:00:04] Weighted Error Value: White=0.59/Black=0.08 (flawless)} ({Not} 63... Qxd1 64. Qxe4 Qxh5 65. Qe5+ Kg6 66. Qe4+ Kg7 67. Qd4+ Kh7 68. Qe5 $17) 0-1

[Event "2nd China Preliminary Asian Games 2022"]
[Site "HangZhou"]
[Date "2022.04.17"]
[Round "4.2"]
[White "Zhang, Zhong"]
[Black "Xu, Xiangyu"]
[Result "*"]
[ECO "D38"]
[WhiteElo "2640"]
[BlackElo "2564"]
[Annotator "TA"]
[PlyCount "35"]
[EventDate "2022.04.13"]
[EventType "tourn"]
[EventCountry "CHN"]
[SourceTitle "playchess.com"]
[Source "ChessBase"]
[SourceQuality "1"]
[TimeControl "40/5400+30:1800+30"]

{[%evp 18,21,16,5,17,28]} 1. Nf3 {[%emt 0:00:07]} d5 {[%emt 0:00:23]} 2. d4 {[%emt 0:00:12]} Nf6 {[%emt 0:00:06]} 3. c4 {[%emt 0:00:28]} e6 {[%emt 0:00:08]} 4. Nc3 {[%emt 0:00:46]} Bb4 {[%emt 0:00:27]} 5. Bg5 {[%emt 0:00:53]} h6 {[%emt 0:00:21]} 6. Bxf6 {[%emt 0:00:50]} Qxf6 {[%emt 0:00:05]} 7. e3 {[%emt 0:00:57]} O-O {[%emt 0:00:08]} 8. Rc1 {[%emt 1:30:17]} dxc4 {[%emt 0:00:06]} 9. Bxc4 {[%emt 0:00:07]} c5 {[%emt 0:00:04]} 10. O-O {[%emt 0:01:06] Threatens to win with Ne4.} cxd4 {[%emt 0:00:09] D38: Queen's Gambit Declined: Ragozin Defence (4 Nf3 Bb4).} 11. Ne4 {[%emt 0:01:04] [#] A rather calm draw.} {Predecessor:} Qe7 $146 12. a3 Ba5 13. Qxd4 Rd8 14. Qc5 Qxc5 15. Nxc5 Nd7 16. Nb3 Bb6 17. Be2 Nf6 18. Ne5 {½-½ (36) Bu,X (2708)-Ding,L (2799) Hangzhou 2022} *

[Event "2nd China Preliminary Asian Games 2022"]
[Site "HangZhou"]
[Date "2022.04.17"]
[Round "4.3"]
[White "Wei, Yi"]
[Black "Ma, Qun"]
[Result "1/2-1/2"]
[ECO "E43"]
[WhiteElo "2729"]
[BlackElo "2645"]
[Annotator "TA"]
[PlyCount "111"]
[EventDate "2022.04.13"]
[EventType "tourn"]
[EventCountry "CHN"]
[SourceTitle "playchess.com"]
[Source "ChessBase"]
[SourceQuality "1"]
[TimeControl "40/5400+30:1800+30"]

{[%evp 13,111,2,2,0,0,0,13,10,35,35,29,18,28,28,26,31,22,0,16,0,59,46,62,20,65,50,78,19,24,22,28,33,63,58,68,62,150,132,127,141,104,84,95,79,90,72,153,162,193,187,175,164,235,232,200,-37,24,24,884,818,740,52,50,4,0,0,0,-8,-8,-8,-8,-8,-8,-8,-8,-8,0,0,0,0,0,0,0,0,0,0,0,0,0,0,0,0,0,0,0,0,0,0,0,0]} 1. d4 {[%emt 0:00:13]} Nf6 {[%emt 0:00:17]} 2. c4 {[%emt 0:00:12]} e6 {[%emt 0:00:03]} 3. Nc3 {[%emt 0:05:45]} Bb4 {[%emt 0:00:10]} 4. Nf3 {[%emt 0:02:52]} b6 {[%emt 0:00:30]} 5. e3 {[%emt 0:02:11]} Ne4 {[%emt 0:00:22]} 6. Qc2 {[%emt 0:03:30]} Bb7 {[%emt 0:00:10]} 7. Bd3 {[%emt 0:00:06]} f5 {[%emt 0:00:09]} 8. Nd2 {[%emt 0:07:08][%cal Rc3e4] E43: Nimzo-Indian: Rubinstein: 4...b6.} Bxc3 {[%emt 0:05:49]} 9. bxc3 {[%emt 0:00:12][%cal Rd2e4]} Qh4 {[%emt 0:10:02]} 10. g3 {[%emt 0:04:55]} Qh3 {[%emt 0:06:36] ...Nxd2 is the strong threat.} 11. Bf1 $1 {[%emt 0:00:24]} (11. Bxe4 fxe4 12. Ba3 d6 $15) 11... Qh5 {[%emt 0:01:17]} 12. Bg2 {[%emt 0:00:14] [#]} Qg6 $146 {[%emt 0:10:45]} (12... Nxc3 $2 13. f3 $18) (12... O-O {keeps more tension.} 13. Ba3 Rf6 14. Nxe4 Bxe4 15. Bxe4 fxe4 16. Qxe4 Nc6) ({Predecessor:} 12... O-O 13. Nxe4 Bxe4 14. Bxe4 fxe4 15. Qxe4 Nc6 16. O-O Qe2 17. d5 exd5 18. cxd5 Rae8 {1-0 (33) Sahl,B (2343)-Carstensen,J (2372) Denmark 2012}) 13. Ba3 {[%emt 0:08:26]} d6 {[%emt 0:01:47]} 14. Nxe4 {[%emt 0:00:23]} fxe4 {[%emt 0:04:32]} 15. c5 {[%emt 0:06:25]} dxc5 {[%emt 0:05:01]} 16. dxc5 {[%emt 0:00:24]} Nd7 {[%emt 0:00:06]} (16... Bc6 $11) 17. Qa4 $14 {[%emt 0:18:36]} e5 $1 {[%emt 0:01:54]} 18. O-O {[%emt 0:06:41]} Bc6 {[%emt 0:15:27]} 19. Qb3 {[%emt 0:03:44]} Qf7 {[%emt 0:01:02]} 20. cxb6 {[%emt 0:04:07]} ({White should play} 20. Rfd1 $16) 20... axb6 $11 {[%emt 0:06:25]} 21. c4 {[%emt 0:01:31] Prevents Bd5.} Qe6 {[%emt 0:01:16]} 22. Bb4 {[%emt 0:09:56]} Kf7 {[%emt 0:04:24]} 23. a4 {[%emt 0:00:06][%cal Ba2a4,Ba4a5][%mdl 32]} Ra7 {[%emt 0:08:38]} 24. a5 {[%emt 0:01:22]} b5 {[%emt 0:04:30]} (24... Rha8 $14) 25. f4 $16 {[%emt 0:04:22]} exf3 {[%emt 0:01:32]} 26. e4 $1 {[%emt 0:00:36]} Nf6 {[%emt 0:02:35]} 27. Qxf3 {[%emt 0:00:09] aiming for Qh5+.} Rd8 {[%emt 0:01:31]} 28. Bc5 {[%emt 0:03:10] This bishop pair is nice.} Ra6 {[%emt 0:01:28]} 29. g4 {[%emt 0:05:26][%cal Bg3g4,Bg4g5][%mdl 32] Threatens to win with g5.} Kg8 {[%emt 0:02:47]} ({Better is} 29... h6) 30. g5 $1 $36 {[%emt 0:00:06][%mdl 2048] Keeping Black busy.} (30. cxb5 Bxb5 31. g5 Bxf1 32. Bxf1 Nd7 $14) 30... Bxe4 {[%emt 0:00:39]} 31. Qh3 {[%emt 0:00:10]} Bxg2 {[%emt 0:02:08]} 32. Qxg2 {[%emt 0:00:43]} (32. Qxe6+ Rxe6 33. Kxg2 Ne4 $11) 32... Nh5 {[%emt 0:00:02]} (32... Qxc4 $2 33. Be7 (33. gxf6 $2 Qxc5+ 34. Kh1 Qd5 $19) 33... Qd4+ 34. Kh1 $18) (32... Nd7 $142) 33. cxb5 $18 {[%emt 0:00:34]} Raa8 {[%emt 0:01:06]} 34. Rae1 $2 {[%emt 0:00:06]} (34. Qe4 $1 $18) 34... Qc4 {[%emt 0:00:50]} (34... Rxa5 $15 35. Qe2 g6 36. Qxe5 Qxe5 37. Rxe5 Rxb5) 35. Rxe5 $11 {[%emt 0:00:52] Hoping for Qf3.} Re8 $2 {[%emt 0:00:07][%mdl 8192] [#]} (35... Rxa5 $11 36. Qf3 g6) 36. Qf3 $1 $18 {[%emt 0:01:15][%mdl 512] Threatening mate with Rxe8+.} h6 {[%emt 0:01:00]} (36... g6 37. a6) 37. Rf5 $2 {[%emt 0:00:40]} (37. Rd5 Nf4 38. Rf5 Ne6 $18) (37. Rfe1 $18 Rxe5 38. Qxa8+ Kh7 39. g6+ Kxg6 40. Qc6+ Kh7 41. Rxe5 Qc1+ 42. Kg2 Qb2+ 43. Kf3 Qc3+ 44. Re3) 37... g6 $1 $14 {[%emt 0:00:33]} 38. Rf8+ {[%emt 0:01:23]} ({Don't go for} 38. gxh6 $2 gxf5 39. Qxf5 Kh8 $19) ({Wrong is} 38. Rd5 $2 Nf4 $1 {[%mdl 512]} 39. Qxf4 (39. Re5 $2 Rxe5 40. Bd6 Rxg5+ 41. Kh1 Nd5 $19) 39... Qxd5 $19) (38. Qd5+ $1 $14 Qxd5 39. Rxd5 Rxa5 40. Bd4 (40. gxh6 Rxb5 41. h7+ Kxh7 $11)) 38... Rxf8 $11 {[%emt 0:00:41] The position is equal.} 39. Bxf8 {[%emt 0:00:02] Chess con chili.} Rxa5 {[%emt 0:01:08]} 40. gxh6 {[%emt 0:00:00][%cal Of8b4] Black must now prevent Bb4!} Rxb5 {[%emt 0:00:00] Strongly threatening ...Rg5+.} 41. Qf7+ {[%emt 0:09:52]} Qxf7 {[%emt 0:01:13]} 42. Rxf7 {[%emt 0:00:04]} Rf5 {[%emt 0:09:09]} ({Much less strong is} 42... Kxf7 {[#]} 43. h7 $1 Rg5+ 44. Kf2 Rf5+ 45. Ke3 Kxf8 46. h8=Q+ Kf7 47. Qc8 $14) 43. Rxf5 {[%emt 0:00:04]} (43. h7+ {seems wilder.} Kh8 44. Rxf5 gxf5 45. Kf2) 43... gxf5 {[%emt 0:00:04][%mdl 4096] Endgame KB-KN} 44. Be7 {[%emt 0:00:02]} Kh7 {[%emt 0:02:56]} 45. Bg5 {[%emt 0:00:05]} Kg6 {[%emt 0:00:09]} 46. Kf2 {[%emt 0:00:06]} Nf6 {[%emt 0:00:34]} (46... Kxg5 $2 47. h7 Nf6 48. h8=Q $18) 47. Bxf6 {[%emt 0:00:35]} Kxf6 {[%emt 0:00:11] KPP-KPP} 48. Ke3 {[%emt 0:00:03]} c5 {[%emt 0:00:22]} 49. Kf4 {[%emt 0:00:06]} c4 {[%emt 0:00:16] ( -> ...c3)} 50. Ke3 {[%emt 0:00:02]} Kg6 {[%emt 0:00:11]} 51. Kd4 {[%emt 0:00:02]} Kxh6 {[%emt 0:00:07]} 52. Kxc4 {[%emt 0:00:02]} Kg5 {[%emt 0:00:07]} 53. Kd3 {[%emt 0:00:06]} Kg4 {[%emt 0:00:05]} 54. Ke3 {[%emt 0:00:02]} Kh3 {[%emt 0:00:09]} 55. Kf4 {[%emt 0:00:01]} Kxh2 {[%emt 0:00:07]} 56. Kxf5 {[%emt 0:00:35] Weighted Error Value: White=0.33/Black=0.16 (very precise)} 1/2-1/2

[Event "2nd China Preliminary Asian Games 2022"]
[Site "HangZhou"]
[Date "2022.04.17"]
[Round "4.3"]
[White "Ma, Qun"]
[Black "Wei, Yi"]
[Result "*"]
[WhiteElo "2645"]
[BlackElo "2729"]
[Annotator "TA"]
[PlyCount "33"]
[EventDate "2022.04.13"]
[EventType "tourn"]
[EventCountry "CHN"]
[SourceTitle "playchess.com"]
[Source "ChessBase"]
[SourceQuality "1"]
[TimeControl "40/5400+30:1800+30"]

{[%evp 8,8,-1]} 1. d4 {[%emt 0:00:13]} Nf6 {[%emt 0:00:17]} 2. c4 {[%emt 0:00:12]} e6 {[%emt 0:00:03]} 3. Nc3 {[%emt 1:31:35]} Bb4 {[%emt 0:00:10]} 4. Nf3 {[%emt 0:02:52]} b6 {[%emt 0:00:30] [#] Not much happened in this game.} {Predecessor:} 5. e3 $146 O-O 6. Bd3 {E53: Nimzo-Indian: Rubinstein: Main Line (4...0-0 5 Nf3 d5 6 Bd3 c5 7 0-0).} d5 7. cxd5 exd5 8. O-O c5 9. Ne5 Bxc3 10. bxc3 Ba6 11. Bxa6 Nxa6 12. Qa4 Nc7 13. f3 a6 14. Bd2 Nb5 15. Qb3 Nd6 16. Be1 c4 17. Qb4 {1-0 (35) Howell,D (2646)-Grandelius,N (2672) London 2022} *

[Event "2nd China Preliminary Asian Games 2022"]
[Site "HangZhou"]
[Date "2022.04.18"]
[Round "5.1"]
[White "Ma, Qun"]
[Black "Bu, Xiangzhi"]
[Result "1/2-1/2"]
[ECO "D38"]
[WhiteElo "2645"]
[BlackElo "2700"]
[Annotator "TA"]
[PlyCount "69"]
[EventDate "2022.04.13"]
[EventType "tourn"]
[EventCountry "CHN"]
[SourceTitle "playchess.com"]
[Source "ChessBase"]
[SourceQuality "1"]
[TimeControl "40/5400+30:1800+30"]

{[%evp 18,69,22,10,6,16,6,5,8,4,4,4,34,35,16,16,10,10,4,10,7,13,9,14,4,8,10,15,12,8,15,0,0,0,0,-2,0,0,0,-12,-10,-7,0,-4,-7,-45,-37,-36,0,0,0,0,0,0]} 1. d4 {[%emt 0:00:09]} Nf6 {[%emt 0:00:07]} 2. c4 {[%emt 0:00:10]} e6 {[%emt 0:00:03]} 3. Nf3 {[%emt 0:00:14]} d5 {[%emt 0:00:11]} 4. Nc3 {[%emt 0:00:26]} Bb4 {[%emt 0:00:20]} 5. Bg5 {[%emt 0:00:36]} h6 {[%emt 0:00:27]} 6. Bxf6 {[%emt 0:00:09]} Qxf6 {[%emt 0:00:04]} 7. e3 {[%emt 0:00:24]} O-O {[%emt 0:00:13]} 8. Rc1 {[%emt 0:00:21]} dxc4 {[%emt 0:01:53]} 9. Bxc4 {[%emt 0:00:12]} c5 {[%emt 0:00:04]} 10. O-O {[%emt 0:00:13] White wants to play Ne4.} cxd4 {[%emt 0:00:37] D38: Queen's Gambit Declined: Ragozin Defence (4 Nf3 Bb4).} 11. Ne4 {[%emt 0:00:14]} (11. Nxd4 Bd7 12. Qb3 Nc6 13. Nxc6 Bxc3 14. Rxc3 Bxc6 15. Bb5 Bd5 16. Bc4 Bc6 17. Bb5 Bd5 18. Bc4 Bc6 19. Bb5 {½-½ (19) Ma,Q (2626)-Bu,X (2729) Daqing 2019}) 11... Qe7 {[%emt 0:00:17]} 12. Nxd4 {[%emt 0:00:11]} Bd7 {[%emt 0:04:54]} 13. Be2 {[%emt 0:00:17]} Nc6 {[%emt 0:05:13]} 14. a3 $1 {[%emt 0:01:46] 14.a3 is better than 14.Nb3.} Ba5 {[%emt 0:05:37]} 15. Nb3 {[%emt 0:00:26] Pair of Knights!} Rfd8 {[%emt 0:17:05]} 16. Nxa5 {[%emt 0:00:21]} Nxa5 {[%emt 0:00:02][%cal Bc6a5,Ba5c4,Bc4b6,Bb6a4,Ba4b2][%mdl 32]} 17. Rc7 {[%emt 0:00:13] [#] Black must now prevent Nc5.} Rac8 {[%emt 0:00:11]} 18. Qc1 {[%emt 0:00:04]} f5 {[%emt 0:05:01] [#]} (18... Qf8 {feels hotter.} 19. Bh5 f5 20. Qc3 Nc6) 19. Rxc8 $146 {[%emt 0:13:57]} (19. Qc3 {is interesting.} Nc6 20. Rxc8 Rxc8 21. Ng3) ({Predecessor:} 19. b4 Nb3 20. Qc3 Rxc7 21. Qxc7 fxe4 22. Rd1 Kf7 23. h3 g6 24. Bc4 Bb5 25. Qxd8 Qxd8 26. Rxd8 Bxc4 {½-½ (63) Wang,H (2710)-Yu,Y (2723) Xinghua 2015}) 19... Rxc8 {[%emt 0:01:54]} 20. Nc3 {[%emt 0:02:18]} Nc4 {[%emt 0:07:43]} 21. Rd1 {[%emt 0:04:12]} Nb6 {[%emt 0:01:30]} 22. Qd2 {[%emt 0:13:32]} Qc5 {[%emt 0:01:54]} 23. h3 {[%emt 0:04:46]} Be8 {[%emt 0:06:26]} 24. e4 {[%emt 0:11:21]} Na4 {[%emt 0:07:15][%cal Ra4c3]} 25. Rc1 {[%emt 0:03:13] [#] Hoping for Na2.} fxe4 {[%emt 0:00:44]} 26. Bg4 {[%emt 0:05:52]} Qc6 {[%emt 0:01:10]} 27. Qd4 {[%emt 0:14:56]} h5 {[%emt 0:01:58]} 28. Bd1 {[%emt 0:06:19][%cal Rd1a4]} Nxb2 {[%emt 0:03:59] next ...Nd3 is good for Black.} 29. Ne2 {[%emt 0:00:17]} Nc4 {[%emt 0:01:54]} 30. Bb3 $132 {[%emt 0:00:17][%mdl 2048] White has counterplay} b5 {[%emt 0:00:10]} 31. Bxc4 {[%emt 0:00:26]} (31. Qxa7 $5 {[%cal Ra3a4]} Ra8 32. Qe7 $11) 31... bxc4 {[%emt 0:00:07]} 32. Qxa7 {[%emt 0:00:35]} Ra8 {[%emt 0:10:48]} 33. Qd4 {[%emt 0:06:15] The position is equal.} Rxa3 {[%emt 0:02:37]} 34. Rxc4 {[%emt 0:00:51]} Qd5 {[%emt 0:01:26]} 35. Qxe4 {[%emt 0:04:01] Weighted Error Value: White=0.03 (flawless) /Black=0.03 (flawless)} 1/2-1/2